fUST/lending_fUST_20250112
["ID","MTS","AMOUNT","RATE_DAILY","PERIOD"]
[348541978,1736611205209,6726.00612602,0.0001824,2]
[348541979,1736611205538,5000.0,0.0001824,2]
[348541980,1736611205873,5000.0,0.0001824,2]
[348541981,1736611206202,5000.0,0.0001824,2]
[348541982,1736611206558,5000.0,0.0001824,2]
[348541984,1736611634135,-181.93881504,0.00020447,2]
[348542117,1736611822031,168.126431,0.00013973,2]
[348542930,1736611840207,-168.126431,0.00020447,2]
[348542932,1736611840217,-7658.669852,0.00020974,2]
[348542934,1736611840227,-329.394,0.0002108,2]
[348542936,1736611840240,-466.24212635,0.00021083,2]
[348542939,1736611840249,-300.0,0.00021264,2]
[348542941,1736611840262,-3418.0,0.00021265,2]
[348542943,1736611840271,-150.0,0.00021306,2]
[348542945,1736611840283,-2075.0,0.00021306,2]
[348542947,1736611840292,-535.0,0.00021306,2]
[348542949,1736611840301,-2315.0,0.00021306,2]
[348542951,1736611840312,-2103.84539637,0.000214,2]
[348542956,1736611840344,-2315.53878663,0.000214,2]
[348542958,1736611840354,-150.633,0.00021619,2]
[348542960,1736611840363,-163.248,0.00021619,2]
[348542962,1736611840372,-230.219,0.00021619,2]
[348542964,1736611840382,-153.0,0.00021724,2]
[348542966,1736611840391,-153.0,0.0002173,2]
[348542968,1736611840401,-153.0,0.0002173,2]
[348542970,1736611840410,-153.0,0.0002173,2]
[348542972,1736611840420,-153.0,0.0002173,2]
[348542974,1736611840429,-153.0,0.0002173,2]
[348542976,1736611840438,-153.0,0.0002173,2]
[348542978,1736611840448,-300.0,0.000219,9]
[348542980,1736611840458,-151.80702425,0.00021904,2]
[348542983,1736611840467,-504.24247026,0.00021916,2]
[348542985,1736611840478,-53.92268791,0.00021916,2]
[348542987,1736611840490,-100.24031209,0.00021916,2]
[348542989,1736611840499,-6111.52,0.00021917,3]
[348543007,1736611840653,-1021.69,0.00021917,3]
[348543009,1736611840666,-500.0,0.00021917,3]
[348543011,1736611840676,-4553.65,0.00021917,3]
[348543013,1736611840685,-500.0,0.00021917,3]
[348543015,1736611840694,-500.0,0.00021917,3]
[348543017,1736611840703,-500.0,0.00021917,3]
[348543019,1736611840713,-500.0,0.00021917,3]
[348543021,1736611840722,-500.0,0.00021917,3]
[348543023,1736611840732,-500.0,0.00021917,3]
[348543025,1736611840741,-513.75188447,0.00021917,3]
[348543028,1736611840751,-888.37,0.00021917,3]
[348543030,1736611840760,-500.0,0.00021917,3]
[348543032,1736611840769,-542.71,0.00021917,3]
[348543034,1736611840779,-500.0,0.00021917,3]
[348543036,1736611840788,-500.0,0.00021917,3]
[348543038,1736611840797,-641.06,0.00021917,3]
[348543040,1736611840807,-1366.31,0.00021917,3]
[348543042,1736611840817,-703.17,0.00021917,3]
[348543044,1736611840826,-500.0,0.00021917,3]
[348543046,1736611840835,-506.94,0.00021917,3]
[348543047,1736611840845,-723.893082,0.00021917,2]
[348543049,1736611840854,-723.893082,0.00021917,2]
[348543051,1736611840864,-500.0,0.00021917,3]
[348543053,1736611840874,-500.0,0.00021917,3]
[348543055,1736611840884,-500.0,0.00021917,3]
[348543057,1736611840893,-500.0,0.00021917,3]
[348543059,1736611840902,-500.0,0.00021917,3]
[348543061,1736611840912,-500.0,0.00021917,3]
[348543063,1736611840921,-500.0,0.00021917,3]
[348543065,1736611840931,-673.62,0.00021917,3]
[348543067,1736611840940,-500.0,0.00021917,3]
[348543069,1736611840950,-500.0,0.00021917,3]
[348543071,1736611840959,-500.0,0.00021917,3]
[348543073,1736611840968,-500.0,0.00021917,3]
[348543075,1736611840978,-500.0,0.00021917,3]
[348543077,1736611840987,-500.0,0.00021917,3]
[348543079,1736611840996,-631.25,0.00021917,3]
[348543081,1736611841006,-500.0,0.00021917,3]
[348543083,1736611841015,-374.1563277,0.00021917,3]
[348543086,1736611841028,-500.0,0.00021917,3]
[348543088,1736611841037,-23968.44,0.00021917,3]
[348543089,1736611841047,-318.84724289,0.00021917,3]
[348543092,1736611841056,-500.0,0.00021917,3]
[348543093,1736611841066,-971.9,0.00021917,3]
[348543096,1736611841076,-500.0,0.00021917,3]
[348543097,1736611841085,-6774.2,0.00021917,3]
[348543099,1736611841095,-1137.57,0.00021917,3]
[348543102,1736611841104,-500.0,0.00021917,3]
[348543103,1736611841114,-666.6,0.00021917,3]
[348543105,1736611841123,-1375.32,0.00021917,3]
[348543107,1736611841133,-39130.5,0.00021917,2]
[348543110,1736611841143,-1140.82,0.00021917,3]
[348543111,1736611841152,-2471.61,0.00021917,3]
[348543113,1736611841161,-500.0,0.00021917,3]
[348543115,1736611841171,-1024.79,0.00021917,3]
[348543117,1736611841180,-500.0,0.00021917,3]
[348543119,1736611841190,-732.41,0.00021917,3]
[348543121,1736611841199,-3353.89,0.00021917,3]
[348543123,1736611841209,-909.21,0.00021917,3]
[348543125,1736611841218,-893.99,0.00021917,3]
[348543127,1736611841228,-500.0,0.00021917,3]
[348543129,1736611841241,-500.0,0.00021917,3]
[348543131,1736611841251,-500.0,0.00021917,3]
[348543133,1736611841260,-1625.99,0.00021917,3]
[348543135,1736611841269,-500.0,0.00021917,3]
[348543137,1736611841280,-742.65,0.00021917,3]
[348543139,1736611841289,-744.67,0.00021917,3]
[348543141,1736611841298,-500.0,0.00021917,3]
[348543143,1736611841309,-500.0,0.00021917,3]
[348543145,1736611841319,-1104.71,0.00021917,3]
[348543147,1736611841328,-1782.57,0.00021917,3]
[348543149,1736611841337,-941.51,0.00021917,3]
[348543151,1736611841347,-528.51,0.00021917,3]
[348543153,1736611841356,-500.0,0.00021917,3]
[348543155,1736611841365,-500.0,0.00021917,3]
[348543157,1736611841374,-500.0,0.00021917,3]
[348543159,1736611841384,-887.67,0.00021917,3]
[348543161,1736611841393,-585.20240699,0.00021917,3]
[348543163,1736611841402,-500.0,0.00021917,3]
[348543165,1736611841414,-500.0,0.00021917,3]
[348543167,1736611841423,-991.72,0.00021917,3]
[348543169,1736611841433,-977.47,0.00021917,3]
[348543171,1736611841442,-500.0,0.00021917,3]
[348543173,1736611841452,-500.0,0.00021917,3]
[348543175,1736611841462,-939.86,0.00021917,3]
[348543177,1736611841471,-500.0,0.00021917,3]
[348543179,1736611841480,-500.0,0.00021917,3]
[348543181,1736611841489,-1497.03,0.00021917,3]
[348543183,1736611841499,-500.0,0.00021917,3]
[348543185,1736611841508,-1616.49,0.00021917,3]
[348543187,1736611841517,-1026.15,0.00021917,3]
[348543189,1736611841527,-500.0,0.00021917,3]
[348543191,1736611841536,-500.0,0.00021917,3]
[348543193,1736611841546,-500.0,0.00021917,3]
[348543194,1736611841556,-500.0,0.00021917,3]
[348543196,1736611841565,-500.0,0.00021917,3]
[348543198,1736611841575,-298.15094568,0.00021917,3]
[348543200,1736611841584,-518.41273249,0.00021917,3]
[348543202,1736611841594,-166.46,0.0002192,2]
[348543204,1736611841603,-166.46,0.0002192,2]
[348543206,1736611841612,-166.46,0.0002192,2]
[348543208,1736611841621,-166.46,0.0002192,2]
[348543210,1736611841631,-166.46,0.0002192,2]
[348543212,1736611841640,-166.46,0.0002192,2]
[348543214,1736611841650,-166.46,0.0002192,2]
[348543216,1736611841659,-1000.0,0.00022,22]
[348543218,1736611841669,-169.0,0.00022034,2]
[348543220,1736611841678,-169.0,0.00022034,2]
[348543222,1736611841688,-172.845813,0.00022075,2]
[348543224,1736611841697,-156.0,0.00022155,2]
[348543226,1736611841706,-156.0,0.00022155,2]
[348543228,1736611841715,-156.0,0.00022155,2]
[348543230,1736611841725,-156.0,0.00022155,2]
[348543232,1736611841734,-156.0,0.00022155,2]
[348543234,1736611841743,-156.0,0.00022155,2]
[348543236,1736611841752,-156.0,0.00022155,2]
[348543238,1736611841762,-156.0,0.00022155,2]
[348543240,1736611841773,-156.0,0.00022155,2]
[348543242,1736611841782,-156.0,0.00022155,2]
[348543244,1736611841791,-162.4,0.00022155,2]
[348543246,1736611841800,-151.0,0.00022191,7]
[348543247,1736611841810,-6111.52,0.00022191,3]
[348543249,1736611841819,-1021.69,0.00022191,3]
[348543251,1736611841828,-573.854105,0.00022191,3]
[348543253,1736611841837,-4553.65,0.00022191,3]
[348543255,1736611841847,-500.0,0.00022191,3]
[348543257,1736611841856,-500.0,0.00022191,3]
[348543259,1736611841866,-500.0,0.00022191,3]
[348543261,1736611841875,-500.0,0.00022191,3]
[348543263,1736611841884,-500.0,0.00022191,3]
[348543265,1736611841893,-500.0,0.00022191,3]
[348543267,1736611841902,-888.37,0.00022191,3]
[348543269,1736611841912,-500.0,0.00022191,3]
[348543271,1736611841921,-500.0,0.00022191,3]
[348543273,1736611841930,-500.0,0.00022191,3]
[348543275,1736611841939,-641.06,0.00022191,3]
[348543277,1736611841948,-1366.31,0.00022191,3]
[348543279,1736611841957,-703.17,0.00022191,3]
[348543281,1736611841968,-500.0,0.00022191,3]
[348543283,1736611841978,-506.94,0.00022191,3]
[348543285,1736611841987,-723.893082,0.00022191,7]
[348543287,1736611841996,-723.893082,0.00022191,7]
[348543289,1736611842006,-723.893082,0.00022191,7]
[348543291,1736611842015,-723.893082,0.00022191,7]
[348543293,1736611842025,-723.893082,0.00022191,7]
[348543295,1736611842034,-723.893082,0.00022191,7]
[348543297,1736611842043,-500.0,0.00022191,3]
[348543299,1736611842052,-500.0,0.00022191,3]
[348543301,1736611842062,-500.0,0.00022191,3]
[348543303,1736611842071,-500.0,0.00022191,3]
[348543305,1736611842080,-500.0,0.00022191,3]
[348543307,1736611842089,-500.0,0.00022191,3]
[348543309,1736611842099,-500.0,0.00022191,3]
[348543310,1736611842108,-673.62,0.00022191,3]
[348543312,1736611842117,-500.0,0.00022191,3]
[348543314,1736611842127,-500.0,0.00022191,3]
[348543317,1736611842136,-500.0,0.00022191,3]
[348543319,1736611842146,-500.0,0.00022191,3]
[348543320,1736611842155,-500.0,0.00022191,3]
[348543322,1736611842164,-500.0,0.00022191,3]
[348543324,1736611842173,-631.25,0.00022191,3]
[348543326,1736611842182,-500.0,0.00022191,3]
[348543328,1736611842191,-500.0,0.00022191,3]
[348543330,1736611842201,-23968.44,0.00022191,3]
[348543332,1736611842210,-500.0,0.00022191,3]
[348543334,1736611842219,-971.9,0.00022191,3]
[348543336,1736611842229,-500.0,0.00022191,3]
[348543338,1736611842241,-6774.2,0.00022191,3]
[348543340,1736611842250,-1137.57,0.00022191,3]
[348543342,1736611842259,-500.0,0.00022191,3]
[348543344,1736611842268,-666.6,0.00022191,3]
[348543346,1736611842279,-1375.32,0.00022191,3]
[348543348,1736611842288,-39130.5,0.00022191,2]
[348543350,1736611842297,-1140.82,0.00022191,3]
[348543352,1736611842306,-2471.61,0.00022191,3]
[348543354,1736611842317,-500.0,0.00022191,3]
[348543356,1736611842326,-1024.79,0.00022191,3]
[348543358,1736611842338,-500.0,0.00022191,3]
[348543360,1736611842347,-732.41,0.00022191,3]
[348543362,1736611842356,-3353.89,0.00022191,3]
[348543364,1736611842365,-909.21,0.00022191,3]
[348543366,1736611842375,-893.99,0.00022191,3]
[348543368,1736611842383,-500.0,0.00022191,3]
[348543370,1736611842394,-500.0,0.00022191,3]
[348543372,1736611842403,-500.0,0.00022191,3]
[348543373,1736611842412,-1625.99,0.00022191,3]
[348543375,1736611842421,-500.0,0.00022191,3]
[348543377,1736611842430,-742.65,0.00022191,3]
[348543379,1736611842439,-744.67,0.00022191,3]
[348543381,1736611842448,-500.0,0.00022191,3]
[348543383,1736611842457,-500.0,0.00022191,3]
[348543385,1736611842467,-1104.71,0.00022191,3]
[348543387,1736611842477,-1782.57,0.00022191,3]
[348543389,1736611842487,-941.51,0.00022191,3]
[348543391,1736611842496,-528.51,0.00022191,3]
[348543393,1736611842506,-500.0,0.00022191,3]
[348543395,1736611842516,-500.0,0.00022191,3]
[348543397,1736611842525,-500.0,0.00022191,3]
[348543399,1736611842535,-887.67,0.00022191,3]
[348543401,1736611842545,-500.0,0.00022191,3]
[348543403,1736611842555,-500.0,0.00022191,3]
[348543405,1736611842564,-991.72,0.00022191,3]
[348543408,1736611842573,-977.47,0.00022191,3]
[348543411,1736611842584,-500.0,0.00022191,3]
[348543414,1736611842593,-500.0,0.00022191,3]
[348543416,1736611842603,-939.86,0.00022191,3]
[348543418,1736611842613,-500.0,0.00022191,3]
[348543420,1736611842622,-500.0,0.00022191,3]
[348543422,1736611842632,-1497.03,0.00022191,3]
[348543425,1736611842642,-159.04165857,0.00022191,3]
[348543427,1736611842651,-1616.49,0.00022191,3]
[348543429,1736611842661,-1026.15,0.00022191,3]
[348543431,1736611842671,-500.0,0.00022191,3]
[348543433,1736611842680,-500.0,0.00022191,3]
[348543435,1736611842690,-451.43569294,0.00022191,3]
[348543437,1736611842699,-336.10532746,0.00022191,3]
[348543439,1736611842709,-837.48,0.000222,2]
[348543441,1736611842718,-1200.0,0.00022211,2]
[348543443,1736611842728,-172.845813,0.00022282,2]
[348543445,1736611842738,-1015.86218182,0.00022309,2]
[348543447,1736611842747,-500.0,0.00022465,3]
[348543449,1736611842756,-6111.52,0.00022465,3]
[348543451,1736611842766,-1021.69,0.00022465,3]
[348543453,1736611842775,-4553.65,0.00022465,3]
[348543455,1736611842785,-500.0,0.00022465,3]
[348543457,1736611842795,-500.0,0.00022465,3]
[348543459,1736611842804,-500.0,0.00022465,3]
[348543461,1736611842814,-500.0,0.00022465,3]
[348543463,1736611842823,-500.0,0.00022465,3]
[348543465,1736611842833,-500.0,0.00022465,3]
[348543467,1736611842842,-888.37,0.00022465,3]
[348543469,1736611842852,-500.0,0.00022465,3]
[348543471,1736611842861,-500.0,0.00022465,3]
[348543473,1736611842873,-476.69481743,0.00022465,3]
[348543475,1736611842883,-641.06,0.00022465,3]
[348543477,1736611842892,-1366.31,0.00022465,3]
[348543479,1736611842902,-703.17,0.00022465,3]
[348543481,1736611842911,-500.0,0.00022465,3]
[348543482,1736611842920,-506.94,0.00022465,3]
[348543483,1736611842930,-723.893082,0.00022465,7]
[348543484,1736611842940,-723.893082,0.00022465,7]
[348543485,1736611842949,-723.893082,0.00022465,7]
[348543486,1736611842958,-723.893082,0.00022465,7]
[348543487,1736611842970,-723.893082,0.00022465,7]
[348543488,1736611842979,-723.893082,0.00022465,7]
[348543489,1736611842988,-500.0,0.00022465,3]
[348543490,1736611842997,-500.0,0.00022465,3]
[348543491,1736611843007,-500.0,0.00022465,3]
[348543492,1736611843017,-500.0,0.00022465,3]
[348543496,1736611843125,-500.0,0.00022465,3]
[348543498,1736611843135,-500.0,0.00022465,3]
[348543500,1736611843144,-500.0,0.00022465,3]
[348543502,1736611843154,-673.62,0.00022465,3]
[348543504,1736611843163,-500.0,0.00022465,3]
[348543506,1736611843173,-500.0,0.00022465,3]
[348543508,1736611843182,-500.0,0.00022465,3]
[348543510,1736611843191,-500.0,0.00022465,3]
[348543512,1736611843201,-500.0,0.00022465,3]
[348543514,1736611843210,-500.0,0.00022465,3]
[348543516,1736611843220,-631.25,0.00022465,3]
[348543518,1736611843229,-500.0,0.00022465,3]
[348543520,1736611843241,-500.0,0.00022465,3]
[348543522,1736611843251,-23968.44,0.00022465,3]
[348543524,1736611843260,-500.0,0.00022465,3]
[348543526,1736611843269,-971.9,0.00022465,3]
[348543528,1736611843279,-500.0,0.00022465,3]
[348543530,1736611843289,-6774.2,0.00022465,3]
[348543532,1736611843298,-1137.57,0.00022465,3]
[348543534,1736611843309,-500.0,0.00022465,3]
[348543536,1736611843318,-666.6,0.00022465,3]
[348543538,1736611843328,-1375.32,0.00022465,3]
[348543540,1736611843338,-39130.5,0.00022465,2]
[348543542,1736611843348,-1140.82,0.00022465,3]
[348543544,1736611843357,-2471.61,0.00022465,3]
[348543546,1736611843367,-500.0,0.00022465,3]
[348543548,1736611843376,-1024.79,0.00022465,3]
[348543550,1736611843385,-500.0,0.00022465,3]
[348543552,1736611843395,-732.41,0.00022465,3]
[348543554,1736611843405,-3353.89,0.00022465,3]
[348543556,1736611843414,-909.21,0.00022465,3]
[348543558,1736611843424,-893.99,0.00022465,3]
[348543560,1736611843434,-500.0,0.00022465,3]
[348543562,1736611843443,-500.0,0.00022465,3]
[348543564,1736611843453,-500.0,0.00022465,3]
[348543566,1736611843463,-1625.99,0.00022465,3]
[348543568,1736611843473,-500.0,0.00022465,3]
[348543571,1736611843483,-744.67,0.00022465,3]
[348543572,1736611843492,-742.65,0.00022465,3]
[348543574,1736611843501,-500.0,0.00022465,3]
[348543576,1736611843510,-500.0,0.00022465,3]
[348543578,1736611843520,-1104.71,0.00022465,3]
[348543581,1736611843529,-1782.57,0.00022465,3]
[348543583,1736611843538,-941.51,0.00022465,3]
[348543585,1736611843548,-528.51,0.00022465,3]
[348543587,1736611843558,-500.0,0.00022465,3]
[348543589,1736611843567,-500.0,0.00022465,3]
[348543591,1736611843576,-500.0,0.00022465,3]
[348543593,1736611843585,-887.67,0.00022465,3]
[348543595,1736611843594,-500.0,0.00022465,3]
[348543597,1736611843605,-500.0,0.00022465,3]
[348543599,1736611843614,-991.72,0.00022465,3]
[348543601,1736611843624,-977.47,0.00022465,3]
[348543603,1736611843633,-500.0,0.00022465,3]
[348543605,1736611843642,-500.0,0.00022465,3]
[348543607,1736611843651,-939.86,0.00022465,3]
[348543609,1736611843660,-501.94013541,0.00022465,3]
[348543611,1736611843669,-500.0,0.00022465,3]
[348543613,1736611843678,-1497.03,0.00022465,3]
[348543615,1736611843687,-1616.49,0.00022465,3]
[348543617,1736611843696,-1026.15,0.00022465,3]
[348543619,1736611843706,-500.0,0.00022465,3]
[348543621,1736611843715,-500.0,0.00022465,3]
[348543623,1736611843724,-172.845813,0.00022488,2]
[348543625,1736611843733,-2000.0,0.000225,2]
[348543627,1736611843743,-196.0,0.0002265,2]
[348543629,1736611843752,-197.84,0.00022663,2]
[348543631,1736611843761,-172.845813,0.00022694,2]
[348543633,1736611843771,-500.0,0.00022739,2]
[348543634,1736611843780,-500.0,0.00022739,3]
[348543637,1736611843789,-6111.52,0.00022739,3]
[348543638,1736611843799,-1021.69,0.00022739,3]
[348543641,1736611843808,-4553.65,0.00022739,3]
[348543642,1736611843817,-500.0,0.00022739,3]
[348543645,1736611843827,-500.0,0.00022739,3]
[348543647,1736611843836,-500.0,0.00022739,3]
[348543649,1736611843845,-500.0,0.00022739,3]
[348543650,1736611843854,-500.0,0.00022739,3]
[348543652,1736611843863,-500.0,0.00022739,3]
[348543654,1736611843874,-888.37,0.00022739,3]
[348543656,1736611843883,-490.67787788,0.00022739,3]
[348543658,1736611843893,-500.0,0.00022739,3]
[348543660,1736611843903,-641.06,0.00022739,3]
[348543662,1736611843912,-1366.31,0.00022739,3]
[348543664,1736611843922,-703.17,0.00022739,3]
[348543667,1736611843931,-500.0,0.00022739,3]
[348543669,1736611843942,-506.94,0.00022739,3]
[348543671,1736611843952,-723.893082,0.00022739,7]
[348543673,1736611843962,-723.893082,0.00022739,7]
[348543675,1736611843971,-723.893082,0.00022739,7]
[348543677,1736611843981,-723.893082,0.00022739,7]
[348543679,1736611843990,-723.893082,0.00022739,7]
[348543681,1736611843999,-500.0,0.00022739,3]
[348543683,1736611844009,-723.893078,0.00022739,7]
[348543685,1736611844018,-500.0,0.00022739,3]
[348543687,1736611844028,-558.72288816,0.00022739,3]
[348543689,1736611844037,-500.0,0.00022739,3]
[348543691,1736611844046,-500.0,0.00022739,3]
[348543693,1736611844056,-500.0,0.00022739,3]
[348543695,1736611844065,-500.0,0.00022739,3]
[348543697,1736611844075,-673.62,0.00022739,3]
[348543699,1736611844085,-500.0,0.00022739,3]
[348543701,1736611844094,-500.0,0.00022739,3]
[348543703,1736611844103,-171.17577451,0.00022739,3]
[348543705,1736611844113,-500.0,0.00022739,3]
[348543708,1736611844123,-500.0,0.00022739,3]
[348543710,1736611844133,-500.0,0.00022739,3]
[348543712,1736611844142,-631.25,0.00022739,3]
[348543714,1736611844152,-500.0,0.00022739,3]
[348543716,1736611844162,-500.0,0.00022739,3]
[348543718,1736611844172,-23968.44,0.00022739,3]
[348543720,1736611844182,-500.0,0.00022739,3]
[348543722,1736611844191,-971.9,0.00022739,3]
[348543724,1736611844200,-500.0,0.00022739,3]
[348543726,1736611844209,-6774.2,0.00022739,3]
[348543728,1736611844219,-1137.57,0.00022739,3]
[348543730,1736611844234,-500.0,0.00022739,3]
[348543733,1736611844248,-666.6,0.00022739,3]
[348543735,1736611844261,-1375.32,0.00022739,3]
[348543738,1736611844275,-18888.5833412,0.00022739,2]
[348543754,1736611844420,-20241.9166588,0.00022739,2]
[348543756,1736611844432,-1140.82,0.00022739,3]
[348543759,1736611844442,-2471.61,0.00022739,3]
[348543761,1736611844452,-500.0,0.00022739,3]
[348543763,1736611844464,-1024.79,0.00022739,3]
[348543765,1736611844474,-500.0,0.00022739,3]
[348543767,1736611844485,-732.41,0.00022739,3]
[348543770,1736611844498,-3353.89,0.00022739,3]
[348543772,1736611844509,-909.21,0.00022739,3]
[348543774,1736611844520,-893.99,0.00022739,3]
[348543776,1736611844532,-500.0,0.00022739,3]
[348543779,1736611844544,-500.0,0.00022739,3]
[348543781,1736611844556,-500.0,0.00022739,3]
[348543783,1736611844568,-1625.99,0.00022739,3]
[348543786,1736611844580,-744.67,0.00022739,3]
[348543788,1736611844592,-500.0,0.00022739,3]
[348543790,1736611844604,-65.72880515,0.00022739,3]
[348543793,1736611844617,-676.92119485,0.00022739,3]
[348543795,1736611844627,-500.0,0.00022739,3]
[348543797,1736611844636,-500.0,0.00022739,3]
[348543799,1736611844646,-1104.71,0.00022739,3]
[348543801,1736611844656,-1782.57,0.00022739,3]
[348543803,1736611844668,-941.51,0.00022739,3]
[348543806,1736611844681,-528.51,0.00022739,3]
[348543808,1736611844692,-500.0,0.00022739,3]
[348543810,1736611844704,-22.10647419,0.00022739,3]
[348543813,1736611844716,-477.89352581,0.00022739,3]
[348543815,1736611844726,-500.0,0.00022739,3]
[348543817,1736611844737,-887.67,0.00022739,3]
[348543819,1736611844747,-500.0,0.00022739,3]
[348543821,1736611844758,-500.0,0.00022739,3]
[348543824,1736611844770,-991.72,0.00022739,3]
[348543826,1736611844780,-977.47,0.00022739,3]
[348543828,1736611844790,-500.0,0.00022739,3]
[348543830,1736611844800,-500.0,0.00022739,3]
[348543832,1736611844810,-939.86,0.00022739,3]
[348543834,1736611844822,-500.0,0.00022739,3]
[348543836,1736611844832,-1497.03,0.00022739,3]
[348543839,1736611844843,-1380.98607419,0.00022739,3]
[348543995,1736611846256,-20.21542389,0.00021526,2]
[348545228,1736612912506,174.280111,0.00013973,2]
[348545229,1736612920565,150.00028013,0.0002,7]
[348545231,1736612927139,461.45313757,0.000189,2]
[348545296,1736613032327,-174.280111,0.00020447,2]
[348545298,1736613032337,-227.451001,0.00020896,2]
[348545300,1736613032346,-343.583,0.000216,2]
[348545302,1736613032355,-329.16986935,0.0002178,2]
[348545318,1736613032493,-1377.03508657,0.0002178,2]
[348545320,1736613032503,-161.72442547,0.00021816,2]
[348545322,1736613032515,-180.5547106,0.00021817,2]
[348545324,1736613032526,-3863.48216854,0.000219,2]
[348545326,1736613032535,-300.0,0.00021915,2]
[348545328,1736613032545,-500.0,0.00021916,2]
[348545331,1736613032554,-500.0,0.00021916,2]
[348545334,1736613032563,-150.68838633,0.00021916,2]
[348545455,1736613038364,-394.0,0.00021756,2]
[348545456,1736613038375,-349.31161367,0.00021916,2]
[348545457,1736613038385,-500.0,0.00021916,2]
[348545459,1736613038395,-500.0,0.00021916,2]
[348545460,1736613038405,-500.0,0.00021916,2]
[348545462,1736613038414,-308.28291388,0.00021916,2]
[348545463,1736613038424,-371.12548963,0.00021916,2]
[348545464,1736613038434,-500.0,0.00021916,2]
[348545465,1736613038443,-500.0,0.00021916,2]
[348545466,1736613038453,-250.0,0.00021916,2]
[348545467,1736613038462,-500.0,0.00021916,2]
[348545468,1736613038472,-500.0,0.00021916,2]
[348545469,1736613038482,-500.0,0.00021916,2]
[348545470,1736613038491,-500.0,0.00021916,2]
[348545471,1736613038500,-203.67918307,0.00021916,2]
[348545472,1736613038510,-500.0,0.00021916,2]
[348545473,1736613038519,-500.0,0.00021916,2]
[348545474,1736613038528,-500.0,0.00021916,2]
[348545475,1736613038537,-294.84202243,0.00021916,2]
[348545476,1736613038549,-205.15797756,0.00021916,2]
[348545477,1736613038559,-167.188,0.00021916,2]
[348545478,1736613038568,-352.96972918,0.00021916,2]
[348545479,1736613038577,-500.0,0.00021916,7]
[348545480,1736613038586,-500.0,0.00021916,2]
[348545481,1736613038595,-500.0,0.00021916,2]
[348545482,1736613038604,-502.77137632,0.00021916,2]
[348545483,1736613038614,-500.0,0.00021916,2]
[348545484,1736613038623,-500.0,0.00021916,2]
[348545485,1736613038632,-500.0,0.00021916,2]
[348545486,1736613038642,-181.0,0.00021916,2]
[348545487,1736613038652,-500.0,0.00021916,2]
[348545488,1736613038661,-500.0,0.00021916,2]
[348545489,1736613038670,-617.92463577,0.00021916,2]
[348545490,1736613038681,-285.34382786,0.00021916,2]
[348545491,1736613038692,-259.42724339,0.00021916,2]
[348545492,1736613038701,-500.0,0.00021916,2]
[348545493,1736613038711,-500.0,0.00021916,2]
[348545494,1736613038720,-500.0,0.00021916,2]
[348545495,1736613038729,-500.0,0.00021916,2]
[348545496,1736613038739,-500.0,0.00021916,2]
[348545497,1736613038748,-155.67529031,0.00021916,2]